[Event "*** Titled Tuesday Blitz"]
[Site "Chess.com"]
[Date "2020.04.21"]
[Round "9"]
[White "poliplaza"]
[Black "ChesterF"]
[Result "1-0"]
[WhiteElo "2415"]
[BlackElo "2518"]
[TimeControl "180+1"]
[EndTime "11:50:07 PDT"]
[Termination "poliplaza won by resignation"]

1. d4 {[%clk 0:03:00]} 1... Nf6 {[%clk 0:02:59.4]} 2. c4 {[%clk 0:02:58.1]} 2...
e6 {[%clk 0:02:59.6]} 3. Nc3 {[%clk 0:02:49]} 3... Bb4 {[%clk 0:02:58.4]} 4. Bd2
{[%clk 0:02:46.9]} 4... O-O {[%clk 0:02:57.5]} 5. Nf3 {[%clk 0:02:47.3]} 5... d5
{[%clk 0:02:54.4]} 6. e3 {[%clk 0:02:47.6]} 6... b6 {[%clk 0:02:53.5]} 7. Be2
{[%clk 0:02:48]} 7... Bb7 {[%clk 0:02:51.9]} 8. O-O {[%clk 0:02:47.9]} 8... a6
{[%clk 0:02:49.2]} 9. Rc1 {[%clk 0:02:45.8]} 9... Bd6 {[%clk 0:02:44.9]} 10. Ne5
{[%clk 0:02:43.9]} 10... Nbd7 {[%clk 0:02:41.3]} 11. f4 {[%clk 0:02:43.8]} 11...
Ne4 {[%clk 0:02:37.5]} 12. cxd5 {[%clk 0:02:32.7]} 12... Nxd2 {[%clk 0:02:23.4]}
13. Qxd2 {[%clk 0:02:33.6]} 13... exd5 {[%clk 0:02:23]} 14. Bf3 {[%clk
0:02:09.5]} 14... Nf6 {[%clk 0:02:20.2]} 15. g4 {[%clk 0:02:04.6]} 15... Ne4
{[%clk 0:01:56.3]} 16. Qc2 {[%clk 0:01:13.5]} 16... Nxc3 {[%clk 0:01:26.1]} 17.
Qxc3 {[%clk 0:01:10.4]} 17... Qe7 {[%clk 0:01:24.2]} 18. Rfe1 {[%clk 0:01:00]}
18... Qe6 {[%clk 0:01:17.3]} 19. Nc6 {[%clk 0:00:36.5]} 19... Rfe8 {[%clk
0:01:00.4]} 20. Kg2 {[%clk 0:00:14.4]} 20... h5 {[%clk 0:01:00]} 21. h3 {[%clk
0:00:13.6]} 21... hxg4 {[%clk 0:00:55.3]} 22. hxg4 {[%clk 0:00:14.5]} 22... Qf6
{[%clk 0:00:55.8]} 23. Ne5 {[%clk 0:00:10.4]} 23... c5 {[%clk 0:00:53]} 24. Rh1
{[%clk 0:00:10.1]} 24... Rac8 {[%clk 0:00:48.1]} 25. g5 {[%clk 0:00:09.3]} 25...
Qe7 {[%clk 0:00:42.5]} 26. Qd3 {[%clk 0:00:07.8]} 26... g6 {[%clk 0:00:42.9]}
27. Nxg6 {[%clk 0:00:07.6]} 27... fxg6 {[%clk 0:00:42.2]} 28. Qxg6+ {[%clk
0:00:08.5]} 28... Qg7 {[%clk 0:00:41]} 29. Qxd6 {[%clk 0:00:09.1]} 29... Rcd8
{[%clk 0:00:37.3]} 30. Qxb6 {[%clk 0:00:09]} 30... Rxe3 {[%clk 0:00:25.3]} 31.
Rh6 {[%clk 0:00:06.6]} 31... Rxf3 {[%clk 0:00:12.9]} 32. Rg6 {[%clk 0:00:03.9]}
32... Rd7 {[%clk 0:00:05.4]} 33. Rxg7+ {[%clk 0:00:04]} 33... Kxg7 {[%clk
0:00:05.6]} 34. Kxf3 {[%clk 0:00:04.9]} 34... cxd4 {[%clk 0:00:05.7]} 35. Rc7
{[%clk 0:00:04.7]} 35... Rxc7 {[%clk 0:00:03.2]} 36. Qxc7+ {[%clk 0:00:05.6]}
36... Kg6 {[%clk 0:00:03.8]} 37. Qxb7 {[%clk 0:00:06.5]} 1-0

[Event "*** Titled Tuesday Blitz"]
[Site "Chess.com"]
[Date "2020.04.21"]
[Round "9"]
[White "KuzubovYuriy"]
[Black "Alexander_Moskalenko"]
[Result "0-1"]
[WhiteElo "2761"]
[BlackElo "2908"]
[TimeControl "180+1"]
[EndTime "11:50:08 PDT"]
[Termination "Alexander_Moskalenko won on time"]

1. d4 {[%clk 0:03:00.9]} 1... d5 {[%clk 0:01:45]} 2. c4 {[%clk 0:02:59.5]} 2...
e6 {[%clk 0:01:44.6]} 3. Nf3 {[%clk 0:02:58.9]} 3... Nf6 {[%clk 0:01:42.5]} 4.
Nc3 {[%clk 0:02:58.2]} 4... Bb4 {[%clk 0:01:38.3]} 5. Bg5 {[%clk 0:02:56.9]}
5... h6 {[%clk 0:01:38]} 6. Bxf6 {[%clk 0:02:57.2]} 6... Qxf6 {[%clk 0:01:38.9]}
7. Qa4+ {[%clk 0:02:57.6]} 7... Nc6 {[%clk 0:01:37.5]} 8. e3 {[%clk 0:02:58]}
8... O-O {[%clk 0:01:34.2]} 9. Rd1 {[%clk 0:02:57.5]} 9... Qg6 {[%clk
0:01:11.8]} 10. Qb3 {[%clk 0:02:52.3]} 10... dxc4 {[%clk 0:01:02]} 11. Bxc4
{[%clk 0:02:50.4]} 11... Bd6 {[%clk 0:01:02.6]} 12. Bd3 {[%clk 0:02:36.4]} 12...
Qxg2 {[%clk 0:00:46.9]} 13. Ke2 {[%clk 0:02:36.3]} 13... Qh3 {[%clk 0:00:47.5]}
14. Rhg1 {[%clk 0:02:31.5]} 14... Nb4 {[%clk 0:00:48.1]} 15. Be4 {[%clk
0:02:01.5]} 15... f5 {[%clk 0:00:47.5]} 16. Bb1 {[%clk 0:01:53.5]} 16... b6
{[%clk 0:00:47.1]} 17. Nb5 {[%clk 0:01:50.4]} 17... Ba6 {[%clk 0:00:46.1]} 18.
Qxe6+ {[%clk 0:01:44.3]} 18... Kh8 {[%clk 0:00:45.1]} 19. a4 {[%clk 0:01:33.4]}
19... Rf6 {[%clk 0:00:40.2]} 20. Qd7 {[%clk 0:01:24.6]} 20... Rg8 {[%clk
0:00:40.3]} 21. Ne5 {[%clk 0:00:51.4]} 21... Bc8 {[%clk 0:00:31.8]} 22. Nf7+
{[%clk 0:00:18.5]} 22... Kh7 {[%clk 0:00:31.7]} 23. Rxg7+ {[%clk 0:00:17.3]}
23... Kxg7 {[%clk 0:00:26.3]} 24. Rg1+ {[%clk 0:00:16.4]} 24... Qg4+ {[%clk
0:00:12.6]} 25. Rxg4+ {[%clk 0:00:15.5]} 25... fxg4 {[%clk 0:00:13.5]} 26.
Nfxd6+ {[%clk 0:00:12.7]} 26... Bxd7 {[%clk 0:00:13.6]} 27. Ne4 {[%clk 0:00:13]}
27... Bxb5+ {[%clk 0:00:12.2]} 28. axb5 {[%clk 0:00:13.1]} 28... Re8 {[%clk
0:00:11.6]} 29. Ng3 {[%clk 0:00:13]} 29... Rff8 {[%clk 0:00:10.4]} 30. e4 {[%clk
0:00:12]} 30... Nd5 {[%clk 0:00:10]} 31. Ba2 {[%clk 0:00:10.2]} 31... Nf4+
{[%clk 0:00:09.3]} 32. Ke3 {[%clk 0:00:09.9]} 32... h5 {[%clk 0:00:09.8]} 33. e5
{[%clk 0:00:09.4]} 33... Ne6 {[%clk 0:00:05.8]} 34. d5 {[%clk 0:00:07.7]} 34...
Nc5 {[%clk 0:00:05.3]} 35. e6 {[%clk 0:00:07.1]} 35... Kh6 {[%clk 0:00:05.3]}
36. Bb1 {[%clk 0:00:06.3]} 36... Kg5 {[%clk 0:00:05.6]} 37. Bc2 {[%clk
0:00:05.9]} 37... h4 {[%clk 0:00:06.1]} 38. Ne2 {[%clk 0:00:06.1]} 38... Nxe6
{[%clk 0:00:06.2]} 39. dxe6 {[%clk 0:00:05.8]} 39... Rxe6+ {[%clk 0:00:07.1]}
0-1

[Event "*** Titled Tuesday Blitz"]
[Site "Chess.com"]
[Date "2020.04.21"]
[Round "9"]
[White "Lion-Al-Messi"]
[Black "Echecmat"]
[Result "0-1"]
[WhiteElo "2433"]
[BlackElo "2200"]
[TimeControl "180+1"]
[EndTime "11:50:09 PDT"]
[Termination "Echecmat won by resignation"]

1. d4 {[%clk 0:03:00.9]} 1... d5 {[%clk 0:02:58.5]} 2. Nf3 {[%clk 0:03:01.2]}
2... e6 {[%clk 0:02:57.6]} 3. Nc3 {[%clk 0:03:00.9]} 3... c5 {[%clk 0:02:57.7]}
4. e4 {[%clk 0:02:58.4]} 4... dxe4 {[%clk 0:02:52.7]} 5. Nxe4 {[%clk 0:02:57.1]}
5... Nc6 {[%clk 0:02:44]} 6. dxc5 {[%clk 0:02:52.2]} 6... Qxd1+ {[%clk
0:02:26.2]} 7. Kxd1 {[%clk 0:02:52]} 7... f5 {[%clk 0:02:11.3]} 8. Nd6+ {[%clk
0:02:50.8]} 8... Bxd6 {[%clk 0:02:11.6]} 9. cxd6 {[%clk 0:02:51.7]} 9... Kd7
{[%clk 0:02:06.6]} 10. Bb5 {[%clk 0:02:51.9]} 10... Nf6 {[%clk 0:01:58.5]} 11.
Bf4 {[%clk 0:02:50.2]} 11... g5 {[%clk 0:01:35.3]} 12. Ne5+ {[%clk 0:02:47.6]}
12... Kxd6 {[%clk 0:01:27.6]} 13. Nc4+ {[%clk 0:02:42.4]} 13... Kc5 {[%clk
0:01:19]} 14. Bxg5 {[%clk 0:02:38.4]} 14... Ne4 {[%clk 0:01:16.3]} 15. Bxc6
{[%clk 0:02:12.5]} 15... Nxf2+ {[%clk 0:01:13.9]} 16. Ke2 {[%clk 0:02:11.3]}
16... Nxh1 {[%clk 0:01:14]} 17. Bf3 {[%clk 0:01:59.6]} 17... Kxc4 {[%clk
0:01:13]} 18. Be7 {[%clk 0:01:52.8]} 18... e5 {[%clk 0:01:09]} 19. Kf1 {[%clk
0:01:47.3]} 19... e4 {[%clk 0:01:04.9]} 20. Be2+ {[%clk 0:01:46]} 20... Kd5
{[%clk 0:01:03.5]} 21. Rd1+ {[%clk 0:01:46.1]} 21... Ke6 {[%clk 0:00:55]} 22.
Bb4 {[%clk 0:01:43.4]} 22... Kf7 {[%clk 0:00:48.6]} 23. Bc4+ {[%clk 0:01:41.9]}
23... Kg6 {[%clk 0:00:43.4]} 24. Rd6+ {[%clk 0:01:41.3]} 24... Kg5 {[%clk
0:00:34.1]} 25. h4+ {[%clk 0:01:35.4]} 25... Kg4 {[%clk 0:00:20.4]} 26. Be2+
{[%clk 0:01:30.7]} 26... Kf4 {[%clk 0:00:20.2]} 27. Bd2+ {[%clk 0:01:27.7]}
27... Ke5 {[%clk 0:00:18.9]} 28. Rh6 {[%clk 0:01:14.4]} 28... Ng3+ {[%clk
0:00:19]} 29. Ke1 {[%clk 0:01:12.2]} 29... Nxe2 {[%clk 0:00:19.4]} 30. Kxe2
{[%clk 0:01:12.4]} 30... Rg8 {[%clk 0:00:19.5]} 31. Kf2 {[%clk 0:01:01.7]} 31...
Be6 {[%clk 0:00:16.1]} 32. b3 {[%clk 0:01:00.6]} 32... Rad8 {[%clk 0:00:12.2]}
33. Bc1 {[%clk 0:01:00.5]} 33... Rd1 {[%clk 0:00:10.6]} 34. Bb2+ {[%clk
0:01:00.3]} 34... Kd5 {[%clk 0:00:11.1]} 35. c4+ {[%clk 0:01:00.5]} 35... Kd6
{[%clk 0:00:09.4]} 36. Ba3+ {[%clk 0:00:59.7]} 36... Kd7 {[%clk 0:00:09.7]} 37.
Rxh7+ {[%clk 0:00:59]} 37... Kc6 {[%clk 0:00:10.2]} 38. Rh6 {[%clk 0:00:57.5]}
38... Re8 {[%clk 0:00:10.4]} 39. h5 {[%clk 0:00:54.3]} 39... Rd2+ {[%clk
0:00:10.6]} 40. Ke3 {[%clk 0:00:54]} 40... Rxg2 {[%clk 0:00:10.2]} 41. Rf6
{[%clk 0:00:51.8]} 41... Rxa2 {[%clk 0:00:10.5]} 42. Bf8 {[%clk 0:00:50]} 42...
Rh2 {[%clk 0:00:09.3]} 43. h6 {[%clk 0:00:49.9]} 43... Rh3+ {[%clk 0:00:09.7]}
44. Kf4 {[%clk 0:00:47.1]} 44... Rxf8 {[%clk 0:00:10.1]} 45. Rxf8 {[%clk
0:00:45.4]} 45... Rxh6 {[%clk 0:00:10.6]} 46. Kg5 {[%clk 0:00:43.7]} 46... Rh3
{[%clk 0:00:09.4]} 47. Rf6 {[%clk 0:00:42.7]} 47... Kd7 {[%clk 0:00:09.1]} 48.
Kf4 {[%clk 0:00:40.6]} 48... e3 {[%clk 0:00:09.5]} 49. Rg6 {[%clk 0:00:38.7]}
49... e2 {[%clk 0:00:09.6]} 50. Rg1 {[%clk 0:00:39.2]} 50... b5 {[%clk
0:00:07.9]} 51. Re1 {[%clk 0:00:33.7]} 51... bxc4 {[%clk 0:00:08.2]} 52. b4
{[%clk 0:00:33.6]} 52... c3 {[%clk 0:00:06.3]} 53. Rxe2 {[%clk 0:00:33.6]} 53...
Bb3 {[%clk 0:00:06.5]} 54. Re3 {[%clk 0:00:31.8]} 54... Rxe3 {[%clk 0:00:05.7]}
55. Kxe3 {[%clk 0:00:32.7]} 55... c2 {[%clk 0:00:06.3]} 56. Kd2 {[%clk
0:00:33.2]} 56... f4 {[%clk 0:00:06.6]} 57. Kc1 {[%clk 0:00:33.7]} 57... f3
{[%clk 0:00:07.1]} 58. Kb2 {[%clk 0:00:34.6]} 58... f2 {[%clk 0:00:07.7]} 0-1

[Event "*** Titled Tuesday Blitz"]
[Site "Chess.com"]
[Date "2020.04.21"]
[Round "9"]
[White "Indianlad"]
[Black "Sethu0025"]
[Result "1-0"]
[WhiteElo "2989"]
[BlackElo "2825"]
[TimeControl "180+1"]
[EndTime "11:50:10 PDT"]
[Termination "Indianlad won on time"]

1. e4 {[%clk 0:03:00.9]} 1... e5 {[%clk 0:02:59.6]} 2. Nf3 {[%clk 0:03:00.6]}
2... Nc6 {[%clk 0:03:00.1]} 3. Bb5 {[%clk 0:02:59.8]} 3... Nf6 {[%clk
0:02:59.7]} 4. d3 {[%clk 0:02:59.8]} 4... Bc5 {[%clk 0:02:59.6]} 5. Nc3 {[%clk
0:03:00.5]} 5... Nd4 {[%clk 0:02:55.9]} 6. Ba4 {[%clk 0:02:55.5]} 6... O-O
{[%clk 0:02:40.9]} 7. Nxd4 {[%clk 0:02:49.2]} 7... Bxd4 {[%clk 0:02:38.6]} 8.
O-O {[%clk 0:02:46.3]} 8... c6 {[%clk 0:02:26.5]} 9. Ne2 {[%clk 0:02:29.9]} 9...
Bc5 {[%clk 0:02:19.1]} 10. Bg5 {[%clk 0:02:27.2]} 10... d5 {[%clk 0:02:07.9]}
11. exd5 {[%clk 0:02:26.9]} 11... Qxd5 {[%clk 0:02:01.6]} 12. Nc3 {[%clk
0:02:24]} 12... Qd6 {[%clk 0:01:56]} 13. Qf3 {[%clk 0:02:24]} 13... Bd4 {[%clk
0:01:50.3]} 14. Rae1 {[%clk 0:02:22.5]} 14... h6 {[%clk 0:01:44]} 15. Be3 {[%clk
0:02:18.5]} 15... Bd7 {[%clk 0:01:12.7]} 16. Bb3 {[%clk 0:02:15.8]} 16... Rae8
{[%clk 0:01:11.7]} 17. h3 {[%clk 0:02:11.6]} 17... Be6 {[%clk 0:01:07.7]} 18.
Qg3 {[%clk 0:01:58]} 18... Bxb3 {[%clk 0:01:07]} 19. axb3 {[%clk 0:01:56.6]}
19... Bxe3 {[%clk 0:01:00.3]} 20. fxe3 {[%clk 0:01:54.1]} 20... Re6 {[%clk
0:00:56.8]} 21. Rf5 {[%clk 0:01:47.6]} 21... Rfe8 {[%clk 0:00:53]} 22. Ref1
{[%clk 0:01:46.9]} 22... e4 {[%clk 0:00:45.6]} 23. Qxd6 {[%clk 0:01:45.7]} 23...
Rxd6 {[%clk 0:00:45.3]} 24. d4 {[%clk 0:01:46.3]} 24... a6 {[%clk 0:00:41.3]}
25. Ra1 {[%clk 0:01:39]} 25... g6 {[%clk 0:00:37.2]} 26. Re5 {[%clk 0:01:37.2]}
26... Rde6 {[%clk 0:00:34.5]} 27. Rxe6 {[%clk 0:01:37.1]} 27... Rxe6 {[%clk
0:00:34.3]} 28. Kf2 {[%clk 0:01:38]} 28... Kg7 {[%clk 0:00:33.5]} 29. Ra5 {[%clk
0:01:37.5]} 29... h5 {[%clk 0:00:33.5]} 30. Kg3 {[%clk 0:01:26.9]} 30... Kh6
{[%clk 0:00:32.8]} 31. Kf4 {[%clk 0:01:26.5]} 31... h4 {[%clk 0:00:31.9]} 32.
Re5 {[%clk 0:01:25.5]} 32... Nh5+ {[%clk 0:00:14.8]} 33. Kxe4 {[%clk 0:01:25]}
33... Rf6 {[%clk 0:00:14.6]} 34. Re7 {[%clk 0:01:17.3]} 34... Rf2 {[%clk
0:00:14.5]} 35. Rxb7 {[%clk 0:01:18]} 35... f5+ {[%clk 0:00:12.2]} 36. Kd3
{[%clk 0:01:18.5]} 36... Rxg2 {[%clk 0:00:13.1]} 37. Ne2 {[%clk 0:01:14.8]}
37... Kg5 {[%clk 0:00:10.8]} 38. c4 {[%clk 0:01:14.4]} 38... Ng3 {[%clk
0:00:10.3]} 39. Nf4 {[%clk 0:01:12.7]} 39... Rxb2 {[%clk 0:00:10.3]} 40. d5
{[%clk 0:01:12.4]} 40... cxd5 {[%clk 0:00:09.8]} 41. Rb6 {[%clk 0:01:10.6]}
41... dxc4+ {[%clk 0:00:06.6]} 42. Kxc4 {[%clk 0:01:11.5]} 42... Kh6 {[%clk
0:00:03.3]} 43. Rxg6+ {[%clk 0:01:11.8]} 43... Kh7 {[%clk 0:00:03.7]} 44. Rxa6
{[%clk 0:01:12.7]} 44... Nf1 {[%clk 0:00:02.9]} 45. Re6 {[%clk 0:01:02.2]} 45...
Rc2+ {[%clk 0:00:01.7]} 46. Kd3 {[%clk 0:01:01.6]} 46... Rb2 {[%clk 0:00:01.9]}
47. Kc3 {[%clk 0:01:02.2]} 47... Rb1 {[%clk 0:00:02.1]} 48. b4 {[%clk
0:01:02.8]} 48... Re1 {[%clk 0:00:02.3]} 49. Kd4 {[%clk 0:01:03.1]} 49... Rd1+
{[%clk 0:00:02.3]} 50. Kc5 {[%clk 0:01:01.4]} 50... Re1 {[%clk 0:00:02.4]} 51.
Nd5 {[%clk 0:01:01.6]} 51... f4 {[%clk 0:00:02.1]} 52. Nxf4 {[%clk 0:01:00.7]}
52... Nxe3 {[%clk 0:00:02.5]} 53. Nd3 {[%clk 0:00:58.2]} 53... Re2 {[%clk
0:00:01.2]} 54. b5 {[%clk 0:00:58.6]} 54... Rc2+ {[%clk 0:00:01.4]} 55. Kd4
{[%clk 0:00:58.6]} 55... Nf5+ {[%clk 0:00:01.3]} 56. Ke5 {[%clk 0:00:58.9]} 1-0

[Event "*** Titled Tuesday Blitz"]
[Site "Chess.com"]
[Date "2020.04.21"]
[Round "9"]
[White "GM_DarwinLaylo"]
[Black "TERMINATOR_PC"]
[Result "1-0"]
[WhiteElo "2571"]
[BlackElo "2399"]
[TimeControl "180+1"]
[EndTime "11:50:10 PDT"]
[Termination "GM_DarwinLaylo won on time"]

1. c4 {[%clk 0:03:00.1]} 1... e6 {[%clk 0:02:59.8]} 2. Nc3 {[%clk 0:02:59.4]}
2... d5 {[%clk 0:02:59.9]} 3. d4 {[%clk 0:02:58.4]} 3... c6 {[%clk 0:03:00.1]}
4. e3 {[%clk 0:02:53.9]} 4... Nf6 {[%clk 0:02:59.9]} 5. Nf3 {[%clk 0:02:51.9]}
5... Nbd7 {[%clk 0:02:59.8]} 6. b3 {[%clk 0:02:51.6]} 6... Bd6 {[%clk
0:02:57.4]} 7. Bb2 {[%clk 0:02:51.3]} 7... O-O {[%clk 0:02:56.8]} 8. Be2 {[%clk
0:02:51.5]} 8... b6 {[%clk 0:02:57.1]} 9. O-O {[%clk 0:02:51.4]} 9... Bb7 {[%clk
0:02:57.7]} 10. Qc2 {[%clk 0:02:51.5]} 10... Qe7 {[%clk 0:02:58.3]} 11. Rfd1
{[%clk 0:02:49.2]} 11... Rfd8 {[%clk 0:02:58.5]} 12. Rac1 {[%clk 0:02:49.1]}
12... Rac8 {[%clk 0:02:58.6]} 13. e4 {[%clk 0:02:48.4]} 13... Nxe4 {[%clk
0:02:54.6]} 14. Nxe4 {[%clk 0:02:47.7]} 14... dxe4 {[%clk 0:02:55.1]} 15. Qxe4
{[%clk 0:02:48.1]} 15... Nf6 {[%clk 0:02:53]} 16. Qh4 {[%clk 0:02:46.8]} 16...
c5 {[%clk 0:02:51.1]} 17. Ne5 {[%clk 0:02:30.1]} 17... cxd4 {[%clk 0:02:46.9]}
18. Bxd4 {[%clk 0:02:28.7]} 18... Bc5 {[%clk 0:02:36]} 19. Bf3 {[%clk
0:02:10.6]} 19... Bxd4 {[%clk 0:02:17.4]} 20. Rxd4 {[%clk 0:02:09.8]} 20... Rxd4
{[%clk 0:02:16.2]} 21. Qxd4 {[%clk 0:02:08.2]} 21... Rd8 {[%clk 0:02:16.2]} 22.
Qc3 {[%clk 0:01:55.7]} 22... Ne4 {[%clk 0:01:53.5]} 23. Qe3 {[%clk 0:01:49]}
23... Qc5 {[%clk 0:01:38.5]} 24. Qxc5 {[%clk 0:01:36.8]} 24... bxc5 {[%clk
0:01:20.3]} 25. Re1 {[%clk 0:01:33.3]} 25... f5 {[%clk 0:01:15.9]} 26. Bxe4
{[%clk 0:01:26.3]} 26... Bxe4 {[%clk 0:01:12.6]} 27. f3 {[%clk 0:01:26.4]} 27...
Bb7 {[%clk 0:01:03.6]} 28. Kf2 {[%clk 0:01:25.9]} 28... Kf8 {[%clk 0:00:58.1]}
29. Ke2 {[%clk 0:01:25.1]} 29... Ke7 {[%clk 0:00:56.5]} 30. Nd3 {[%clk
0:01:09.4]} 30... Rc8 {[%clk 0:00:48.1]} 31. Kd2 {[%clk 0:01:08]} 31... g5
{[%clk 0:00:27.8]} 32. Kc3 {[%clk 0:01:06.3]} 32... Rc7 {[%clk 0:00:20.5]} 33.
a3 {[%clk 0:01:04.6]} 33... a5 {[%clk 0:00:18.1]} 34. Re3 {[%clk 0:01:01.6]}
34... Kd6 {[%clk 0:00:14]} 35. g3 {[%clk 0:01:00.6]} 35... h5 {[%clk 0:00:14.1]}
36. f4 {[%clk 0:00:59.9]} 36... g4 {[%clk 0:00:10.3]} 37. Re5 {[%clk 0:00:39.7]}
37... Be4 {[%clk 0:00:07.2]} 38. Nb2 {[%clk 0:00:39.3]} 38... h4 {[%clk
0:00:05.8]} 39. Na4 {[%clk 0:00:36.3]} 39... hxg3 {[%clk 0:00:04.5]} 40. hxg3
{[%clk 0:00:36.1]} 40... Rc8 {[%clk 0:00:02.6]} 41. Kd2 {[%clk 0:00:32]} 41...
Rc7 {[%clk 0:00:02.8]} 42. Ke3 {[%clk 0:00:32]} 42... Bc2 {[%clk 0:00:02.3]} 43.
Nc3 {[%clk 0:00:29.6]} 43... Bxb3 {[%clk 0:00:01.9]} 44. Nb5+ {[%clk 0:00:29.3]}
1-0

[Event "*** Titled Tuesday Blitz"]
[Site "Chess.com"]
[Date "2020.04.21"]
[Round "9"]
[White "KrakenBeast"]
[Black "Vamostodorecto"]
[Result "0-1"]
[WhiteElo "2365"]
[BlackElo "2484"]
[TimeControl "180+1"]
[EndTime "11:50:11 PDT"]
[Termination "Vamostodorecto won by resignation"]

1. Nf3 {[%clk 0:03:00.9]} 1... d5 {[%clk 0:02:59.4]} 2. g3 {[%clk 0:03:00.7]}
2... Nc6 {[%clk 0:02:59.8]} 3. Bg2 {[%clk 0:03:01.3]} 3... e5 {[%clk 0:02:57.7]}
4. d3 {[%clk 0:03:01.9]} 4... Bg4 {[%clk 0:02:56.9]} 5. O-O {[%clk 0:03:01.9]}
5... Qd7 {[%clk 0:02:57.1]} 6. c4 {[%clk 0:03:00.4]} 6... d4 {[%clk 0:02:56]} 7.
a3 {[%clk 0:02:58.9]} 7... f6 {[%clk 0:02:51.9]} 8. b4 {[%clk 0:02:58.1]} 8...
Bh3 {[%clk 0:02:49.6]} 9. e3 {[%clk 0:02:54.7]} 9... Bxg2 {[%clk 0:02:47.8]} 10.
Kxg2 {[%clk 0:02:53.9]} 10... h5 {[%clk 0:02:48.5]} 11. exd4 {[%clk 0:02:52.5]}
11... Nxd4 {[%clk 0:02:48.5]} 12. Bb2 {[%clk 0:02:49.3]} 12... h4 {[%clk
0:02:45.2]} 13. Bxd4 {[%clk 0:02:45.2]} 13... hxg3 {[%clk 0:02:39]} 14. fxg3
{[%clk 0:02:33.5]} 14... Qh3+ {[%clk 0:02:31.3]} 15. Kg1 {[%clk 0:02:32.4]}
15... exd4 {[%clk 0:02:28.6]} 16. Qe2+ {[%clk 0:02:31.3]} 16... Ne7 {[%clk
0:02:26.6]} 17. Nxd4 {[%clk 0:02:25.2]} 17... O-O-O {[%clk 0:02:25.7]} 18. Ne6
{[%clk 0:01:58.4]} 18... Rxd3 {[%clk 0:02:21.8]} 19. Nf4 {[%clk 0:01:58.5]}
19... Rxg3+ {[%clk 0:01:57.5]} 20. hxg3 {[%clk 0:01:59.4]} 20... Qh1+ {[%clk
0:01:53.7]} 21. Kf2 {[%clk 0:01:58.6]} 21... Rh2+ {[%clk 0:01:51]} 22. Ke1
{[%clk 0:01:57.7]} 22... Rxe2+ {[%clk 0:01:47.3]} 23. Nxe2 {[%clk 0:01:58.6]}
23... Qe4 {[%clk 0:01:35.1]} 24. Nd2 {[%clk 0:01:54]} 24... Qe3 {[%clk
0:01:27.7]} 25. Rf3 {[%clk 0:01:51.5]} 25... Qe5 {[%clk 0:01:27.1]} 26. Rd1
{[%clk 0:01:47.2]} 26... Nf5 {[%clk 0:01:26.5]} 27. Nb3 {[%clk 0:01:38.6]} 27...
Ne3 {[%clk 0:01:14.5]} 28. Rc1 {[%clk 0:01:26.1]} 28... g5 {[%clk 0:01:05.4]}
29. Rc3 {[%clk 0:01:22.1]} 29... Nf5 {[%clk 0:01:00]} 30. Rcd3 {[%clk
0:01:15.4]} 30... g4 {[%clk 0:00:54.1]} 31. Rd5 {[%clk 0:01:11.1]} 31... gxf3
{[%clk 0:00:46.6]} 32. Rxe5 {[%clk 0:01:10.5]} 32... fxe5 {[%clk 0:00:47.5]} 33.
g4 {[%clk 0:01:09.5]} 33... Ne3 {[%clk 0:00:42.2]} 34. Kf2 {[%clk 0:01:04.4]}
34... fxe2 {[%clk 0:00:38]} 35. g5 {[%clk 0:00:59.1]} 35... Nxc4 {[%clk
0:00:35]} 36. g6 {[%clk 0:00:57.7]} 36... Nxa3 {[%clk 0:00:30.8]} 37. Nc5 {[%clk
0:00:58.2]} 37... Bh6 {[%clk 0:00:26.7]} 38. Nd3 {[%clk 0:00:50.7]} 38... Kd7
{[%clk 0:00:21.3]} 39. Nxe5+ {[%clk 0:00:50.7]} 39... Ke6 {[%clk 0:00:21.3]} 40.
Nf7 {[%clk 0:00:49.7]} 40... Bg7 {[%clk 0:00:20.3]} 41. Nd8+ {[%clk 0:00:50]}
41... Kf6 {[%clk 0:00:19.7]} 42. Nxb7 {[%clk 0:00:50.5]} 42... Kxg6 {[%clk
0:00:18.5]} 43. Nd8 {[%clk 0:00:47.2]} 43... Bf8 {[%clk 0:00:18.2]} 44. Nc6
{[%clk 0:00:44.2]} 44... Kf5 {[%clk 0:00:16.9]} 45. Kxe2 {[%clk 0:00:42.6]}
45... Ke6 {[%clk 0:00:16.4]} 46. Kd3 {[%clk 0:00:37.9]} 46... Kd5 {[%clk
0:00:16.4]} 47. Nxa7 {[%clk 0:00:38.3]} 47... Bxb4 {[%clk 0:00:15.2]} 48. Ke3
{[%clk 0:00:23.8]} 48... Bc5+ {[%clk 0:00:14.2]} 0-1